fUST/lending_fUST_20250722
["ID","MTS","AMOUNT","RATE_DAILY","PERIOD"]
[374064361,1753193446451,-460.0,0.00017446,2]
[374064363,1753193446463,-460.0,0.00017446,2]
[374064365,1753193446475,-460.0,0.00017446,2]
[374064367,1753193446486,-460.0,0.00017446,2]
[374064369,1753193446498,-460.0,0.00017446,2]
[374064372,1753193446509,-460.0,0.00017446,2]
[374064374,1753193446521,-460.0,0.00017446,2]
[374064376,1753193446532,-460.0,0.00017446,2]
[374064378,1753193446543,-460.0,0.00017446,2]
[374064380,1753193446555,-460.0,0.00017446,2]
[374064382,1753193446566,-460.0,0.00017446,2]
[374064385,1753193446577,-460.0,0.00017446,2]
[374064387,1753193446588,-460.0,0.00017446,2]
[374064389,1753193446599,-460.0,0.00017446,2]
[374064391,1753193446613,-460.0,0.00017446,2]
[374064394,1753193446625,-460.0,0.00017446,2]
[374064396,1753193446637,-460.0,0.00017446,2]
[374064398,1753193446648,-460.0,0.00017446,2]
[374064400,1753193446659,-460.0,0.00017446,2]
[374064402,1753193446671,-460.0,0.00017446,2]
[374064404,1753193446682,-369.61441604,0.00017446,2]
[374064407,1753193446693,-460.0,0.00017446,2]
[374064409,1753193446704,-460.0,0.00017446,2]
[374064411,1753193446715,-460.0,0.00017446,2]
[374064413,1753193446726,-460.0,0.00017446,2]
[374064415,1753193446737,-460.0,0.00017446,2]
[374064417,1753193446749,-463.43008277,0.00017446,2]
[374064420,1753193446760,-460.0,0.00017446,2]
[374064422,1753193446771,-460.0,0.00017446,2]
[374064424,1753193446782,-460.0,0.00017446,2]
[374064426,1753193446793,-460.0,0.00017446,2]
[374064428,1753193446804,-460.0,0.00017446,2]
[374064430,1753193446816,-460.0,0.00017446,2]
[374064433,1753193446827,-460.0,0.00017446,2]
[374064435,1753193446839,-286.10940943,0.00017446,2]
[374064437,1753193446850,-379.05,0.00017446,2]
[374064439,1753193446864,-460.0,0.00017446,2]
[374064441,1753193446875,-460.0,0.00017446,2]
[374064443,1753193446886,-460.0,0.00017446,2]
[374064445,1753193446898,-500.0,0.00017447,2]
[374064448,1753193446910,-349.0,0.00017447,2]
[374064450,1753193446921,-151.0,0.00017447,2]
[374064452,1753193446933,-460.0,0.00017447,2]
[374064454,1753193446944,-460.0,0.00017447,2]
[374064456,1753193446955,-460.0,0.00017447,2]
[374064459,1753193446967,-460.0,0.00017447,2]
[374064461,1753193446981,-226.30882684,0.00017447,2]
[374064475,1753193447092,-460.0,0.00017447,2]
[374064478,1753193447138,-460.0,0.00017447,2]
[374064480,1753193447148,-460.0,0.00017447,2]
[374064482,1753193447157,-460.0,0.00017447,2]
[374064484,1753193447166,-466.1381054,0.00017447,2]
[374064486,1753193447175,-460.0,0.00017447,2]
[374064488,1753193447185,-460.0,0.00017447,2]
[374064490,1753193447194,-460.0,0.00017447,2]
[374064492,1753193447205,-460.0,0.00017447,2]
[374064494,1753193447214,-460.0,0.00017447,2]
[374064496,1753193447224,-460.0,0.00017447,2]
[374064498,1753193447237,-460.0,0.00017447,2]
[374064500,1753193447247,-460.0,0.00017447,2]
[374064502,1753193447256,-460.0,0.00017447,2]
[374064504,1753193447265,-460.0,0.00017447,2]
[374064506,1753193447276,-516.0,0.00017448,2]
[374064508,1753193447290,-151.0,0.00017448,2]
[374064510,1753193447300,-151.0,0.00017448,2]
[374064512,1753193447309,-292.99665788,0.00017464,2]
[374064514,1753193447318,-151.0,0.00017464,2]
[374064516,1753193447328,-460.0,0.00017464,2]
[374064518,1753193447337,-567.09995313,0.00017464,2]
[374064520,1753193447347,-467.01,0.00017464,2]
[374064522,1753193447363,-152.029843,0.00017464,2]
[374064524,1753193447373,-173.99,0.00017464,2]
[374064526,1753193447382,-460.0,0.00017464,2]
[374064528,1753193447393,-460.0,0.00017464,2]
[374064530,1753193447402,-460.0,0.00017464,2]
[374064532,1753193447411,-460.0,0.00017464,2]
[374064534,1753193447421,-151.0,0.00017464,2]
[374064536,1753193447430,-151.0,0.00017464,2]
[374064538,1753193447440,-151.0,0.00017464,2]
[374064540,1753193447449,-460.0,0.00017464,2]
[374064542,1753193447459,-151.0,0.00017464,2]
[374064544,1753193447468,-460.0,0.00017464,2]
[374064546,1753193447477,-363.65560079,0.00017464,2]
[374064548,1753193447488,-460.0,0.00017464,2]
[374064550,1753193447498,-562.99378158,0.00017464,2]
[374064552,1753193447507,-460.0,0.00017464,2]
[374064554,1753193447517,-460.0,0.00017464,2]
[374064556,1753193447527,-460.0,0.00017464,2]
[374064558,1753193447537,-460.0,0.00017464,2]
[374064560,1753193447546,-460.0,0.00017464,2]
[374064562,1753193447556,-460.0,0.00017464,2]
[374064564,1753193447566,-813.797964,0.00017464,2]
[374064566,1753193447575,-813.797964,0.00017464,2]
[374064568,1753193447585,-460.0,0.00017464,2]
[374064570,1753193447596,-918.23,0.00017464,2]
[374064572,1753193447608,-460.0,0.00017464,2]
[374064574,1753193447617,-460.0,0.00017464,2]
[374064576,1753193447627,-460.0,0.00017464,2]
[374064578,1753193447636,-460.0,0.00017464,2]
[374064580,1753193447646,-460.0,0.00017464,2]
[374064582,1753193447655,-460.0,0.00017464,2]
[374064584,1753193447665,-460.0,0.00017464,2]
[374064586,1753193447675,-324.3090217,0.00017464,2]
[374064588,1753193447684,-460.0,0.00017464,2]
[374064590,1753193447693,-460.0,0.00017464,2]
[374064592,1753193447703,-460.0,0.00017464,2]
[374064594,1753193447712,-460.0,0.00017464,2]
[374064596,1753193447722,-460.0,0.00017464,2]
[374064598,1753193447732,-461.44965628,0.00017465,2]
[374064600,1753193447741,-460.0,0.00017465,2]
[374064602,1753193447751,-460.0,0.00017465,2]
[374064604,1753193447760,-460.0,0.00017465,2]
[374064606,1753193447769,-460.0,0.00017465,2]
[374064608,1753193447779,-460.0,0.00017465,2]
[374064610,1753193447789,-460.0,0.00017465,2]
[374064612,1753193447799,-420.77053511,0.00017465,2]
[374064614,1753193447808,-347.14678119,0.00017465,2]
[374064616,1753193447817,-460.0,0.00017465,2]
[374064618,1753193447827,-460.0,0.00017465,2]
[374064620,1753193447836,-460.0,0.00017465,2]
[374064622,1753193447846,-469.81501702,0.00017465,2]
[374064624,1753193447855,-460.0,0.00017465,2]
[374064626,1753193447865,-460.0,0.00017465,2]
[374064628,1753193447875,-460.0,0.00017465,2]
[374064630,1753193447888,-460.0,0.00017465,2]
[374064632,1753193447898,-534.38195708,0.00017465,2]
[374064634,1753193447907,-460.0,0.00017465,2]
[374064636,1753193447916,-460.0,0.00017465,2]
[374064638,1753193447926,-875.13,0.00017465,2]
[374064640,1753193447935,-460.0,0.00017465,2]
[374064642,1753193447944,-4526.4,0.00017465,2]
[374064644,1753193447954,-151.0,0.00017465,2]
[374064646,1753193447963,-460.0,0.00017465,2]
[374064648,1753193447972,-670.76,0.00017466,2]
[374064650,1753193447982,-460.0,0.00017466,2]
[374064652,1753193447991,-460.0,0.00017467,2]
[374064654,1753193448001,-909.55,0.00017467,2]
[374064656,1753193448010,-515.96,0.00017467,2]
[374064658,1753193448019,-218.33169195,0.00017521,2]
[374064659,1753193448028,-500.01914078,0.00017521,2]
[374064660,1753193448038,-1198.47680111,0.00017521,2]
[374064662,1753193448047,-594.6323926,0.00017527,2]
[374064663,1753193448057,-151.0,0.00017556,2]
[374064664,1753193448066,-151.0,0.00017556,2]
[374064665,1753193448076,-971.87477219,0.00017695,2]
[374064666,1753193448085,-460.0,0.00017718,2]
[374064667,1753193448095,-460.0,0.00017718,2]
[374064668,1753193448105,-460.0,0.00017718,2]
[374064669,1753193448115,-502.36,0.00017718,2]
[374064671,1753193448124,-467.38602632,0.00017719,2]
[374064673,1753193448135,-460.0,0.00017719,2]
[374064675,1753193448144,-460.0,0.00017719,2]
[374064677,1753193448156,-801.83,0.00017719,2]
[374064679,1753193448166,-460.0,0.00017719,2]
[374064681,1753193448175,-488.67,0.00017719,2]
[374064683,1753193448184,-1247.62,0.00017719,2]
[374064685,1753193448194,-460.0,0.00017719,2]
[374064687,1753193448203,-460.0,0.00017719,2]
[374064689,1753193448213,-460.0,0.00017719,2]
[374064691,1753193448222,-460.0,0.00017719,2]
[374064693,1753193448231,-460.0,0.00017719,2]
[374064695,1753193448240,-460.0,0.00017719,2]
[374064697,1753193448250,-175.58,0.0001772,2]
[374064699,1753193448259,-152.68150462,0.0001772,2]
[374064701,1753193448269,-465.57787501,0.0001772,2]
[374064703,1753193448278,-460.0,0.0001772,2]
[374064705,1753193448288,-460.0,0.0001772,2]
[374064707,1753193448298,-460.0,0.0001772,2]
[374064709,1753193448307,-460.0,0.0001772,2]
[374064711,1753193448317,-460.0,0.0001772,2]
[374064713,1753193448328,-151.0,0.0001772,2]
[374064715,1753193448337,-200.4011,0.0001772,2]
[374064717,1753193448347,-460.0,0.0001772,2]
[374064719,1753193448360,-460.0,0.0001772,2]
[374064721,1753193448370,-460.0,0.0001772,2]
[374064723,1753193448379,-162.70135148,0.0001772,2]
[374064725,1753193448388,-460.0,0.0001772,2]
[374064727,1753193448398,-460.0,0.0001772,2]
[374064729,1753193448408,-460.0,0.0001772,2]
[374064731,1753193448418,-460.0,0.0001772,2]
[374064733,1753193448427,-460.0,0.0001772,2]
[374064735,1753193448438,-460.0,0.0001772,2]
[374064737,1753193448448,-460.0,0.0001772,2]
[374064739,1753193448458,-460.0,0.0001772,2]
[374064741,1753193448467,-460.0,0.0001772,2]
[374064743,1753193448476,-460.0,0.0001772,2]
[374064745,1753193448486,-1000.0,0.00017721,2]
[374064747,1753193448495,-1000.0,0.00017721,2]
[374064749,1753193448505,-500.0,0.00017721,2]
[374064751,1753193448515,-1000.0,0.00017721,2]
[374064753,1753193448526,-500.0,0.00017721,2]
[374064755,1753193448535,-210.60426708,0.00017721,2]
[374064757,1753193448545,-460.0,0.00017721,2]
[374064759,1753193448554,-560.67393125,0.00017721,2]
[374064761,1753193448563,-460.0,0.00017721,2]
[374064763,1753193448573,-460.0,0.00017721,2]
[374064765,1753193448582,-460.0,0.00017721,2]
[374064767,1753193448591,-460.0,0.00017721,2]
[374064769,1753193448600,-460.0,0.00017721,2]
[374064771,1753193448612,-460.0,0.00017721,2]
[374064773,1753193448621,-460.0,0.00017721,2]
[374064775,1753193448631,-460.0,0.00017721,2]
[374064777,1753193448641,-460.0,0.00017721,2]
[374064779,1753193448650,-460.0,0.00017721,2]
[374064781,1753193448659,-185.14,0.00017721,2]
[374064783,1753193448668,-567.07,0.00017721,2]
[374064785,1753193448678,-460.0,0.00017721,2]
[374064787,1753193448687,-516.0,0.00017722,2]
[374064789,1753193448697,-198.0,0.00017722,2]
[374064791,1753193448706,-500.0,0.00017737,2]
[374064793,1753193448716,-500.0,0.00017737,2]
[374064795,1753193448725,-500.0,0.00017737,2]
[374064797,1753193448735,-500.0,0.00017737,2]
[374064799,1753193448745,-412.23605928,0.00017737,2]
[374064801,1753193448755,-460.0,0.00017738,2]
[374064803,1753193448764,-467.01,0.00017738,2]
[374064805,1753193448774,-460.0,0.00017738,2]
[374064807,1753193448783,-460.0,0.00017738,2]
[374064810,1753193448801,-460.0,0.00017738,2]
[374064813,1753193448815,-151.0,0.00017738,2]
[374064815,1753193448824,-460.0,0.00017738,2]
[374064817,1753193448834,-460.0,0.00017738,2]
[374064819,1753193448844,-460.0,0.00017738,2]
[374064821,1753193448853,-460.0,0.00017738,2]
[374064823,1753193448866,-460.0,0.00017738,2]
[374064825,1753193448876,-460.0,0.00017738,2]
[374064827,1753193448885,-460.0,0.00017738,2]
[374064829,1753193448895,-918.23,0.00017738,2]
[374064832,1753193448905,-460.0,0.00017738,2]
[374064834,1753193448915,-460.0,0.00017738,2]
[374064836,1753193448926,-460.0,0.00017738,2]
[374064838,1753193448936,-298.01794482,0.00017738,2]
[374064840,1753193448946,-460.0,0.00017738,2]
[374064842,1753193448956,-460.0,0.00017738,2]
[374064844,1753193448966,-460.0,0.00017738,2]
[374064846,1753193448976,-460.0,0.00017738,2]
[374064848,1753193448986,-270.7,0.00017738,2]
[374064850,1753193448996,-460.0,0.00017739,2]
[374064852,1753193449005,-152.677723,0.00017739,2]
[374064854,1753193449015,-151.0,0.00017739,2]
[374064857,1753193449025,-151.0,0.00017739,2]
[374064859,1753193449035,-460.0,0.00017739,2]
[374064861,1753193449045,-460.0,0.00017739,2]
[374064863,1753193449055,-460.0,0.00017739,2]
[374064865,1753193449064,-460.0,0.00017739,2]
[374064867,1753193449074,-460.0,0.00017739,2]
[374064869,1753193449083,-245.18074767,0.00017739,2]
[374064871,1753193449093,-431.08721199,0.00017739,2]
[374064873,1753193449102,-460.0,0.00017739,2]
[374064875,1753193449114,-390.65392384,0.00017739,2]
[374064877,1753193449125,-305.42983637,0.00017739,2]
[374064879,1753193449135,-460.0,0.00017739,2]
[374064881,1753193449144,-875.13,0.00017739,2]
[374064883,1753193449154,-460.0,0.00017739,2]
[374064885,1753193449164,-4526.4,0.00017739,2]
[374064887,1753193449173,-460.0,0.00017739,2]
[374064889,1753193449183,-670.76,0.0001774,2]
[374064891,1753193449193,-460.0,0.0001774,2]
[374064893,1753193449202,-460.0,0.00017741,2]
[374064896,1753193449212,-909.55,0.00017741,2]
[374064898,1753193449222,-515.96,0.00017741,2]
[374064900,1753193449232,-1198.47680111,0.00017831,2]
[374064902,1753193449242,-280.65641991,0.00017986,2]
[374064904,1753193449252,-460.0,0.00017992,2]
[374064906,1753193449262,-460.0,0.00017992,2]
[374064908,1753193449272,-460.0,0.00017992,2]
[374064910,1753193449282,-502.36,0.00017992,2]
[374064912,1753193449293,-460.0,0.00017993,2]
[374064914,1753193449302,-460.0,0.00017993,2]
[374064916,1753193449312,-801.83,0.00017993,2]
[374064918,1753193449322,-460.0,0.00017993,2]
[374064920,1753193449332,-488.67,0.00017993,2]
[374064922,1753193449342,-1247.62,0.00017993,2]
[374064924,1753193449354,-460.0,0.00017993,2]
[374064926,1753193449367,-460.0,0.00017993,2]
[374064928,1753193449377,-460.0,0.00017993,2]
[374064930,1753193449387,-460.0,0.00017993,2]
[374064932,1753193449397,-460.0,0.00017993,2]
[374064934,1753193449407,-460.0,0.00017993,2]
[374064937,1753193449421,-460.0,0.00017994,2]
[374064939,1753193449433,-460.0,0.00017994,2]
[374064941,1753193449443,-460.0,0.00017994,2]
[374064943,1753193449455,-460.0,0.00017994,2]
[374064945,1753193449465,-460.0,0.00017994,2]
[374064947,1753193449474,-460.0,0.00017994,2]
[374064949,1753193449484,-460.0,0.00017994,2]
[374064951,1753193449493,-460.0,0.00017994,2]
[374064953,1753193449503,-460.0,0.00017994,2]
[374064955,1753193449512,-460.0,0.00017994,2]
[374064957,1753193449523,-460.0,0.00017994,2]
[374064959,1753193449533,-460.0,0.00017994,2]
[374064961,1753193449542,-460.0,0.00017994,2]
[374064963,1753193449552,-460.0,0.00017994,2]
[374064965,1753193449561,-460.0,0.00017994,2]
[374064967,1753193449571,-500.0,0.00017995,2]
[374064969,1753193449580,-460.0,0.00017995,2]
[374064972,1753193449590,-460.0,0.00017995,2]
[374064974,1753193449599,-460.0,0.00017995,2]
[374064976,1753193449611,-460.0,0.00017995,2]
[374064978,1753193449620,-460.0,0.00017995,2]
[374064980,1753193449630,-460.0,0.00017995,2]
[374064982,1753193449640,-460.0,0.00017995,2]
[374064984,1753193449649,-460.0,0.00017995,2]
[374064986,1753193449658,-460.0,0.00017995,2]
[374064988,1753193449668,-151.0,0.00017995,2]
[374064990,1753193449677,-516.0,0.00017996,2]
[374064992,1753193449687,-460.0,0.00018012,2]
[374065008,1753193449826,-467.01,0.00018012,2]
[374065010,1753193449836,-460.0,0.00018012,2]
[374065012,1753193449845,-460.0,0.00018012,2]
[374065014,1753193449855,-258.12827,0.00018012,2]
[374065016,1753193449867,-460.0,0.00018012,2]
[374065018,1753193449876,-152.13470352,0.00018012,2]
[374065020,1753193449887,-460.0,0.00018012,2]
[374065022,1753193449896,-460.0,0.00018012,2]
[374065025,1753193449906,-442.85117061,0.00018012,2]
[374065027,1753193449915,-460.0,0.00018012,2]
[374065029,1753193449925,-813.797964,0.00018012,2]
[374065031,1753193449934,-813.797964,0.00018012,2]
[374065033,1753193449943,-460.0,0.00018012,2]
[374065035,1753193449952,-918.23,0.00018012,2]
[374065037,1753193449962,-460.0,0.00018012,2]
[374065039,1753193449971,-460.0,0.00018012,2]
[374065041,1753193449980,-460.0,0.00018012,2]
[374065043,1753193449990,-460.0,0.00018012,2]
[374065045,1753193449999,-460.0,0.00018012,2]
[374065047,1753193450010,-460.0,0.00018012,2]
[374065049,1753193450020,-460.0,0.00018013,2]
[374065051,1753193450030,-460.0,0.00018013,2]
[374065053,1753193450039,-460.0,0.00018013,2]
[374065055,1753193450048,-460.0,0.00018013,2]
[374065057,1753193450058,-460.0,0.00018013,2]
[374065059,1753193450067,-460.0,0.00018013,2]
[374065061,1753193450076,-875.13,0.00018013,2]
[374065063,1753193450085,-460.0,0.00018013,2]
[374065065,1753193450095,-4526.4,0.00018013,2]
[374065067,1753193450104,-460.0,0.00018013,2]
[374065069,1753193450116,-670.76,0.00018014,2]
[374065071,1753193450125,-460.0,0.00018014,2]
[374065073,1753193450135,-460.0,0.00018015,2]
[374065075,1753193450144,-909.55,0.00018015,2]
[374065077,1753193450156,-515.96,0.00018015,2]
[374065079,1753193450165,-160.0,0.00018048,2]
[374065081,1753193450174,-175.779188,0.00018104,2]
[374065083,1753193450183,-1198.47680111,0.00018141,2]
[374065085,1753193450193,-1252.64,0.0001826,3]
[374065087,1753193450202,-626.32,0.0001826,3]
[374065089,1753193450211,-313.16,0.0001826,3]
[374065091,1753193450220,-151.0,0.0001826,2]
[374065093,1753193450230,-544.67,0.00018266,2]
[374065095,1753193450240,-454.21,0.00018266,2]
[374065097,1753193450249,-502.36,0.00018266,2]
[374065099,1753193450258,-460.0,0.00018267,2]
[374065101,1753193450267,-460.0,0.00018267,2]
[374065103,1753193450276,-801.83,0.00018267,2]
[374065105,1753193450286,-460.0,0.00018267,2]
[374065107,1753193450295,-488.67,0.00018267,2]
[374065109,1753193450305,-1247.62,0.00018267,2]
[374065111,1753193450314,-258.97464754,0.00018267,2]
[374065113,1753193450324,-460.0,0.00018267,2]
[374065115,1753193450333,-460.0,0.00018267,2]
[374065117,1753193450343,-460.0,0.00018267,2]
[374065119,1753193450354,-460.0,0.00018267,2]
[374065121,1753193450366,-460.0,0.00018267,2]
[374065123,1753193450375,-460.0,0.00018268,2]
[374065125,1753193450384,-460.0,0.00018268,2]
[374065127,1753193450394,-460.0,0.00018268,2]
[374065129,1753193450403,-460.0,0.00018268,2]
[374065131,1753193450413,-460.0,0.00018268,2]
[374065133,1753193450422,-460.0,0.00018268,2]
[374065135,1753193450432,-460.0,0.00018268,2]
[374065137,1753193450442,-460.0,0.00018268,2]
[374065139,1753193450451,-460.0,0.00018268,2]
[374065142,1753193450461,-460.0,0.00018268,2]
[374065144,1753193450470,-460.0,0.00018268,2]
[374065146,1753193450480,-460.0,0.00018268,2]
[374065147,1753193450489,-460.0,0.00018268,2]
[374065150,1753193450499,-460.0,0.00018268,2]
[374065152,1753193450509,-502.02656241,0.00018268,2]
[374065154,1753193450518,-1005.7834431,0.00018268,2]
[374065155,1753193450528,-1526.12808574,0.00018268,2]
[374065158,1753193450538,-1500.0,0.00018268,2]
[374065160,1753193450548,-500.0,0.00018269,2]
[374065162,1753193450557,-355.30195347,0.00018269,2]
[374065164,1753193450566,-460.0,0.00018269,2]
[374065166,1753193450576,-532.5533407,0.00018269,2]
[374065168,1753193450585,-460.0,0.00018269,2]
[374065170,1753193450595,-460.0,0.00018269,2]
[374065172,1753193450604,-460.0,0.00018269,2]
[374065174,1753193450616,-460.0,0.00018269,2]
[374065176,1753193450626,-460.0,0.00018269,2]
[374065178,1753193450635,-516.0,0.0001827,2]
[374065180,1753193450645,-500.0,0.00018275,2]
[374065182,1753193450655,-500.0,0.00018275,2]
[374065184,1753193450664,-467.01,0.00018286,2]
[374065186,1753193450674,-460.0,0.00018286,2]
[374065188,1753193450683,-460.0,0.00018286,2]
[374065190,1753193450694,-234.576232,0.00018286,2]
[374065192,1753193450704,-460.0,0.00018286,2]
[374065194,1753193450713,-460.0,0.00018286,2]
[374065196,1753193450723,-460.0,0.00018286,2]
[374065198,1753193450732,-460.0,0.00018286,2]
[374065200,1753193450742,-494.31,0.00018286,2]
[374065202,1753193450751,-918.23,0.00018286,2]
[374065204,1753193450760,-460.0,0.00018286,2]
[374065206,1753193450771,-460.0,0.00018286,2]
[374065208,1753193450780,-296.24767198,0.00018286,2]
[374065210,1753193450790,-446.3261383,0.00018286,2]
[374065212,1753193450799,-251.21080644,0.00018286,2]
[374065214,1753193450809,-460.0,0.00018286,2]
[374065216,1753193450818,-460.0,0.00018287,2]
[374065218,1753193450827,-460.0,0.00018287,2]
[374065220,1753193450837,-460.0,0.00018287,2]
[374065222,1753193450846,-460.0,0.00018287,2]
[374065224,1753193450856,-460.0,0.00018287,2]
[374065226,1753193450868,-460.0,0.00018287,2]
[374065228,1753193450877,-875.13,0.00018287,2]
[374065230,1753193450886,-460.0,0.00018287,2]
[374065232,1753193450897,-4526.4,0.00018287,2]
[374065234,1753193450906,-460.0,0.00018287,2]
[374065236,1753193450915,-670.76,0.00018288,2]
[374065239,1753193450935,-460.0,0.00018288,2]
[374065241,1753193450946,-460.0,0.00018289,2]
[374065243,1753193450956,-909.55,0.00018289,2]
[374065245,1753193450966,-515.96,0.00018289,2]
[374065247,1753193450975,-500.0,0.00018382,2]
[374065249,1753193450985,-151.0,0.00018393,2]
[374065251,1753193450994,-151.0,0.00018393,2]
[374065253,1753193451004,-151.0,0.00018393,2]
[374065255,1753193451014,-151.0,0.00018393,2]
[374065257,1753193451024,-151.0,0.00018393,2]
[374065259,1753193451034,-151.0,0.00018393,2]
[374065261,1753193451043,-151.0,0.00018393,2]
[374065263,1753193451053,-151.0,0.00018393,2]
[374065265,1753193451063,-215.0738,0.00018393,2]
[374065267,1753193451073,-151.0,0.00018393,2]
[374065269,1753193451083,-151.0,0.00018393,2]
[374065271,1753193451092,-151.0,0.00018393,2]
[374065273,1753193451102,-151.0,0.00018393,2]
[374065275,1753193451113,-151.0,0.00018393,2]
[374065277,1753193451122,-151.0,0.00018393,2]
[374065279,1753193451132,-157.55750297,0.00018393,2]
[374065281,1753193451141,-282.14169911,0.00018393,2]
[374065283,1753193451151,-151.0,0.00018393,2]
[374065285,1753193451160,-151.0,0.00018393,2]
[374065287,1753193451170,-151.0,0.00018393,2]
[374065289,1753193451179,-151.0,0.00018393,2]
[374065291,1753193451189,-151.0,0.00018393,2]
[374065293,1753193451199,-151.0,0.00018393,2]
[374065295,1753193451208,-151.0,0.00018393,2]
[374065297,1753193451219,-151.0,0.00018393,2]
[374065299,1753193451228,-151.0,0.00018393,2]
[374065301,1753193451238,-151.0,0.00018393,2]
[374065303,1753193451248,-151.0,0.00018393,2]
[374065305,1753193451257,-151.0,0.00018393,2]
[374065307,1753193451267,-151.0,0.00018393,2]
[374065310,1753193451277,-151.0,0.00018393,2]
[374065312,1753193451287,-151.0,0.00018393,2]
[374065313,1753193451296,-151.0,0.00018393,2]
[374065315,1753193451306,-151.0,0.00018393,2]
[374065317,1753193451316,-151.0,0.00018393,2]
[374065320,1753193451326,-1597.0,0.00018443,2]
[374065321,1753193451336,-420.0,0.00018443,2]
[374065323,1753193451345,-420.0,0.00018443,2]
[374065326,1753193451356,-300.0,0.00018444,2]
[374065327,1753193451370,-1198.47680111,0.00018452,2]
[374065329,1753193451380,-1680.0,0.00018534,2]
[374065331,1753193451389,-151.0,0.00018536,2]
[374065333,1753193451399,-502.36,0.0001854,2]
[374065335,1753193451410,-325.86929875,0.00018541,2]
[374065337,1753193451420,-460.0,0.00018541,2]
[374065339,1753193451431,-801.83,0.00018541,2]
[374065341,1753193451441,-488.67,0.00018541,2]
[374065343,1753193451450,-1247.62,0.00018541,2]
[374065345,1753193451460,-460.0,0.00018541,2]
[374065347,1753193451470,-460.0,0.00018541,2]
[374065349,1753193451479,-460.0,0.00018541,2]
[374065351,1753193451489,-460.0,0.00018541,2]
[374065354,1753193451499,-197.68863758,0.00018542,2]
[374065356,1753193451509,-460.0,0.00018542,2]
[374065358,1753193451522,-460.0,0.00018542,2]
[374065360,1753193451533,-460.0,0.00018542,2]
[374065362,1753193451542,-460.0,0.00018542,2]
[374065364,1753193451552,-460.0,0.00018542,2]
[374065366,1753193451562,-460.0,0.00018542,2]
[374065368,1753193451571,-460.0,0.00018542,2]
[374065369,1753193451580,-460.0,0.00018542,2]
[374065371,1753193451590,-460.0,0.00018542,2]
[374065373,1753193451599,-460.0,0.00018542,2]
[374065375,1753193451611,-460.0,0.00018542,2]
[374065377,1753193451621,-500.0,0.00018543,2]
[374065379,1753193451631,-460.0,0.00018543,2]
[374065381,1753193451640,-430.16976621,0.00018543,2]
[374065384,1753193451651,-460.0,0.00018543,2]
[374065386,1753193451660,-460.0,0.00018543,2]
[374065388,1753193451670,-460.0,0.00018543,2]
[374065390,1753193451680,-516.0,0.00018544,2]
[374065392,1753193451689,-467.01,0.0001856,2]
[374065394,1753193451699,-460.0,0.0001856,2]
[374065396,1753193451709,-460.0,0.0001856,2]